bitfinex-derivatives/quotes_BTCF0:USTF0_20250811
["timestamp","ask_amount","ask_price","bid_price","bid_amount"]
[1754924136856,2.46840625,120280.0,120270.0,0.6831237]
[1754924137061,2.46840625,120280.0,120270.0,0.5468537]
[1754924137062,2.46760625,120280.0,120270.0,0.5468537]
[1754924137260,2.39340427,120280.0,120270.0,0.1860542]
[1754924137556,3.20856427,120280.0,120270.0,0.1860542]
[1754924137752,1.32836625,120280.0,120270.0,0.1860542]
[1754924140349,1.17516443,120280.0,120270.0,0.1029]
[1754924140546,1.99144687,120280.0,120270.0,0.05705895]
[1754924140748,1.99146257,120280.0,120270.0,0.05705895]
[1754924140963,1.17662436,120280.0,120270.0,0.05705895]
[1754924141262,1.99132766,120280.0,120270.0,0.05705895]
[1754924142358,0.0831781,120240.0,120230.0,0.39855143]
[1754924142659,0.89792143,120240.0,120230.0,0.53482143]
[1754924143459,0.90401117,120240.0,120230.0,0.53482143]
[1754924145356,0.00619307,120240.0,120230.0,1.34130884]
[1754924145563,0.00619307,120240.0,120230.0,1.39836779]
[1754924146564,1.50619307,120240.0,120230.0,1.03756779]
[1754924146766,2.32055307,120240.0,120230.0,1.03756779]
[1754924146965,2.40369097,120240.0,120230.0,0.98050884]
[1754924147162,2.40369097,120240.0,120230.0,0.59188038]
[1754924147963,2.40369097,120240.0,120230.0,0.44287515]
[1754924148361,2.40357097,120240.0,120230.0,0.44287515]
[1754924148764,2.40357097,120240.0,120230.0,0.36171515]
[1754924149262,2.40357097,120240.0,120230.0,0.40622515]
[1754924149457,0.0831848,120230.0,120220.0,0.31538843]
[1754924149663,0.44407631,120230.0,120220.0,0.31538843]
[1754924149862,0.44407631,120230.0,120220.0,0.45165843]
[1754924150058,0.08327631,120230.0,120220.0,0.45165843]
[1754924150459,0.00118125,120230.0,120220.0,0.89734584]
[1754924150665,0.81518125,120230.0,120220.0,0.89734584]
[1754924150864,0.82018125,120230.0,120220.0,0.89834584]
[1754924151454,0.90336615,120230.0,120220.0,0.89834584]
[1754924151654,0.90328615,120230.0,120220.0,0.45265843]
[1754924151860,1.26408615,120230.0,120220.0,0.45265843]
[1754924152062,0.90328615,120230.0,120220.0,0.45265843]
[1754924152566,1.26408615,120230.0,120220.0,0.45265843]
[1754924153866,1.26408615,120230.0,120220.0,0.89834584]
[1754924154366,1.26408615,120230.0,120220.0,0.45265843]
[1754924154563,1.26408615,120230.0,120220.0,0.3036532]
[1754924155369,1.26408615,120230.0,120220.0,0.36071215]
[1754924155668,1.26408615,120230.0,120220.0,0.80639956]
[1754924155868,1.26372615,120230.0,120220.0,0.80639956]
[1754924156064,1.18054125,120230.0,120220.0,0.95512229]
[1754924156371,0.81974125,120230.0,120220.0,1.31592229]
[1754924156864,0.81974125,120230.0,120220.0,1.16719956]
[1754924157466,0.81974125,120230.0,120220.0,1.16869956]
[1754924158361,0.90268625,120230.0,120220.0,1.16869956]
[1754924158572,0.81950125,120230.0,120220.0,1.16869956]
[1754924159275,0.81950125,120230.0,120220.0,1.31742229]
[1754924159469,0.00618125,120230.0,120220.0,1.31742229]
[1754924160066,0.00618125,120230.0,120220.0,1.16869956]
[1754924160269,0.00618125,120230.0,120220.0,1.10343679]
[1754924160775,0.0001,120240.0,120230.0,0.083185]
[1754924160776,0.81318,120240.0,120230.0,0.083185]
[1754924160975,0.81308,120240.0,120230.0,1.0809276]
[1754924161171,1.5001,120250.0,120230.0,1.328733]
[1754924161478,2.31318,120250.0,120240.0,0.96290169]
[1754924161773,2.31314814,120250.0,120240.0,1.01373169]
[1754924162176,2.31573814,120250.0,120240.0,1.01373169]
[1754924162374,2.31573814,120250.0,120240.0,1.16239827]
[1754924162575,1.50006814,120250.0,120240.0,1.64272291]
[1754924162978,6.814e-05,120250.0,120240.0,1.64272291]
[1754924163177,6.814e-05,120250.0,120240.0,2.30693633]
[1754924163472,1.50506814,120250.0,120240.0,2.30693633]
[1754924163776,0.00506814,120250.0,120240.0,2.50015137]
[1754924164971,0.00506814,120250.0,120240.0,1.68731137]
[1754924165173,0.00765814,120250.0,120240.0,1.30688673]
[1754924165369,0.82025814,120250.0,120240.0,1.30688673]
[1754924165876,0.82025814,120250.0,120240.0,1.31521525]
[1754924166072,0.83620388,120250.0,120240.0,0.37633314]
[1754924166270,0.83620388,120250.0,120240.0,0.1830781]
[1754924166474,1.64868388,120250.0,120240.0,0.1830781]
[1754924166671,0.45577924,120250.0,120240.0,0.1830781]
[1754924166972,1.26821924,120250.0,120240.0,0.1830781]
[1754924167179,1.27682322,120250.0,120240.0,0.1830781]
[1754924167364,0.10358322,120250.0,120240.0,0.1830781]
[1754924167569,1.27682322,120250.0,120240.0,0.1830781]
[1754924168676,0.46438322,120250.0,120240.0,0.1830781]
[1754924168979,1.26813924,120250.0,120240.0,0.1830781]
[1754924170382,1.27685289,120250.0,120240.0,0.1830781]
[1754924170884,1.26813924,120250.0,120240.0,0.1830781]
[1754924171974,0.01180814,120250.0,120240.0,0.67978672]
[1754924172284,0.08823924,120250.0,120240.0,0.37240705]
[1754924172476,0.90011924,120250.0,120240.0,0.37240705]
[1754924172677,0.09144924,120250.0,120240.0,0.37240705]
[1754924172876,0.90328924,120250.0,120240.0,0.37240705]
[1754924173382,0.90324924,120250.0,120240.0,0.1830781]
[1754924173685,0.90324924,120250.0,120240.0,0.27683705]
[1754924173881,0.90324924,120250.0,120240.0,0.30047705]
[1754924174381,0.09144924,120250.0,120240.0,0.30047705]
[1754924174680,0.90316924,120250.0,120240.0,0.30047705]
[1754924174881,0.89995924,120250.0,120240.0,0.30047705]
[1754924175078,0.81666814,120250.0,120240.0,0.74635567]
[1754924175282,0.90505924,120250.0,120240.0,0.33570705]
[1754924175479,0.90505924,120250.0,120240.0,0.37240705]
[1754924175671,0.01028814,120250.0,120240.0,0.76122672]
[1754924175876,0.81863814,120250.0,120240.0,1.17908567]
[1754924176078,0.00707814,120250.0,120240.0,1.17908567]
[1754924176278,0.81859814,120250.0,120240.0,1.17908567]
[1754924176473,0.00506814,120250.0,120240.0,1.17908567]
[1754924178389,0.00506814,120250.0,120240.0,1.15189567]
[1754924178791,0.81634814,120250.0,120240.0,1.15189567]
[1754924179189,0.00506814,120250.0,120240.0,1.24024131]
[1754924179390,0.90465954,120250.0,120240.0,0.45794374]
[1754924179584,0.09345954,120250.0,120240.0,0.50194269]
[1754924179889,0.81823814,120250.0,120240.0,1.37251131]
[1754924180084,0.90136924,120250.0,120240.0,1.01171131]
[1754924180482,0.90136924,120250.0,120240.0,0.81828567]
[1754924180680,0.09345924,120250.0,120240.0,0.52118968]
[1754924180890,0.90449924,120250.0,120240.0,0.52118968]
[1754924182191,0.91526924,120250.0,120240.0,0.44938705]
[1754924182389,0.83209814,120250.0,120240.0,0.44938705]
[1754924182584,0.91526924,120250.0,120240.0,0.44938705]
[1754924183193,0.83209814,120250.0,120240.0,0.81018705]
[1754924183494,0.02105814,120250.0,120240.0,0.81018705]
[1754924183694,0.81787814,120250.0,120240.0,1.25606567]
[1754924183894,0.77959644,120250.0,120240.0,1.25606567]
[1754924184094,1.5001,120260.0,120240.0,1.50559527]
[1754924184290,1.15165,120270.0,120250.0,1.38854384]
[1754924184489,0.07152521,120280.0,120260.0,1.34858082]
[1754924184694,0.07152521,120280.0,120270.0,1.01638582]
[1754924184895,0.88234952,120280.0,120270.0,1.01638582]
[1754924185192,0.89632952,120280.0,120270.0,1.01638582]
[1754924185590,0.89632952,120280.0,120270.0,0.5705072]
[1754924185790,0.08560952,120280.0,120270.0,0.6532072]
[1754924186096,0.89720952,120280.0,120270.0,0.7531072]
[1754924186996,0.89720952,120280.0,120270.0,0.90179269]
[1754924187899,0.89720952,120280.0,120270.0,0.7531072]
[1754924188098,0.89720952,120280.0,120270.0,0.90179744]
[1754924189594,0.89680952,120280.0,120270.0,0.90179744]
[1754924190191,0.89680952,120280.0,120270.0,1.28204729]
[1754924190593,0.08660952,120280.0,120270.0,1.13335705]
[1754924190793,0.89672952,120280.0,120270.0,1.13335705]
[1754924190995,0.89150952,120280.0,120270.0,1.13335705]
[1754924191293,0.88073952,120280.0,120270.0,1.13335705]
[1754924191492,0.0691723,120280.0,120270.0,1.190416]
[1754924191698,0.8791723,120280.0,120270.0,1.190416]
[1754924193490,0.8791723,120280.0,120270.0,1.33896751]
[1754924193703,0.8791723,120280.0,120270.0,0.95871766]
[1754924194003,0.8791723,120280.0,120270.0,1.33896751]
[1754924194195,0.8791723,120280.0,120270.0,1.40423394]
[1754924195201,0.8791723,120280.0,120270.0,1.25568243]
[1754924195400,2.3791723,120280.0,120270.0,1.4041891]
[1754924196198,2.3791723,120280.0,120270.0,1.25568243]
[1754924196400,2.3786923,120280.0,120270.0,1.25568243]
[1754924196597,2.3807823,120280.0,120270.0,1.25568243]
[1754924197899,2.3786923,120280.0,120270.0,1.25568243]
[1754924198304,1.5691723,120280.0,120270.0,1.25568243]
[1754924198502,0.0001,120290.0,120270.0,2.42469847]
[1754924198697,0.0001,120290.0,120280.0,1.06876613]
[1754924198899,1.50219,120300.0,120290.0,0.083144]
[1754924199099,2.31137,120300.0,120290.0,1.21341328]
[1754924199396,2.31137,120300.0,120290.0,1.27047223]
[1754924199593,2.31145448,120300.0,120290.0,1.27047223]
[1754924200104,2.37752263,120300.0,120290.0,1.27047223]
[1754924200400,2.37752263,120300.0,120290.0,1.37037223]
[1754924200605,2.37752263,120300.0,120290.0,1.22196923]
[1754924201099,2.46057923,120300.0,120290.0,0.358594]
[1754924201301,2.46738923,120300.0,120290.0,0.44529295]
[1754924201697,2.46738923,120300.0,120290.0,0.45029295]
[1754924202506,2.46738923,120300.0,120290.0,0.41360295]
[1754924202807,2.46738923,120300.0,120290.0,0.28807295]
[1754924203508,2.46738923,120300.0,120290.0,0.33065295]
[1754924204407,2.38425263,120300.0,120290.0,0.33065295]
[1754924205608,2.38425263,120300.0,120290.0,0.89580923]
[1754924205808,2.37744263,120300.0,120290.0,0.89580923]
[1754924206307,2.37744263,120300.0,120290.0,1.25660923]
[1754924206697,2.37535263,120300.0,120290.0,1.25660923]
[1754924206895,2.37744263,120300.0,120290.0,1.25660923]
[1754924207098,2.37744263,120300.0,120290.0,1.19955028]
[1754924207099,1.56615263,120300.0,120290.0,1.19955028]
[1754924207305,1.56615263,120300.0,120290.0,1.25660923]
[1754924207896,1.53460993,120300.0,120290.0,1.25660923]
[1754924208100,3e-08,120300.0,120290.0,2.06492923]
[1754924208314,0.80842,120310.0,120290.0,2.23121283]
[1754924208510,0.80842,120310.0,120300.0,1.03206233]
[1754924208808,0.81041,120310.0,120300.0,1.15170233]
[1754924209204,0.82473651,120310.0,120300.0,0.70618605]
[1754924209402,0.89167025,120310.0,120300.0,0.80608605]
[1754924209601,2.39167025,120310.0,120300.0,0.80608605]
[1754924210209,2.39167025,120310.0,120300.0,1.25160233]
[1754924211118,2.39167025,120310.0,120300.0,0.80608605]
[1754924211317,1.67329005,120310.0,120300.0,0.5868071]
[1754924211610,2.48129005,120310.0,120300.0,0.5888071]
[1754924211801,2.47448005,120310.0,120300.0,0.5888071]
[1754924212000,2.39135025,120310.0,120300.0,1.19654338]
[1754924212200,2.47448005,120310.0,120300.0,1.19654338]
[1754924212407,2.48129005,120310.0,120300.0,1.19654338]
[1754924212699,2.48129005,120310.0,120300.0,0.7510271]
[1754924212907,2.48129005,120310.0,120300.0,0.3902271]
[1754924213108,2.48129005,120310.0,120300.0,0.2280071]
[1754924213308,2.48129005,120310.0,120300.0,0.28506605]
[1754924213908,2.48096666,120310.0,120300.0,0.1782267]
[1754924214109,2.64721466,120310.0,120300.0,0.093]
[1754924214310,3.50493466,120310.0,120300.0,0.093]
[1754924214506,2.00493466,120310.0,120300.0,0.093]
[1754924215105,2.00493466,120310.0,120300.0,0.176137]
[1754924215300,1.95493466,120310.0,120300.0,0.176137]
[1754924215505,2.00493466,120310.0,120300.0,0.093]
[1754924216506,3.15442274,120310.0,120300.0,0.093]
[1754924216711,3.15440767,120310.0,120300.0,0.093]
[1754924217010,3.15433466,120310.0,120300.0,0.093]
[1754924217808,1.90109838,120310.0,120300.0,0.1761372]
[1754924218108,3.15417466,120310.0,120300.0,0.1761372]
[1754924218314,3.08886131,120310.0,120300.0,0.1761372]
[1754924218716,3.08886131,120310.0,120300.0,0.093]
[1754924219015,3.08878131,120310.0,120300.0,0.093]
[1754924219607,2.23130131,120310.0,120300.0,0.093]
[1754924219807,2.29813166,120310.0,120300.0,0.093]
[1754924220106,3.10545166,120310.0,120300.0,0.093]
[1754924220615,2.29813166,120310.0,120300.0,0.093]
[1754924220914,3.10537166,120310.0,120300.0,0.093]
[1754924221710,3.05537166,120310.0,120300.0,0.093]
[1754924222007,2.24813166,120310.0,120300.0,0.093]
[1754924222209,3.05529166,120310.0,120300.0,0.093]
[1754924222907,2.24813166,120310.0,120300.0,0.093]
[1754924223310,2.29813166,120310.0,120300.0,0.093]
[1754924223513,3.10517166,120310.0,120300.0,0.093]
[1754924223913,3.10513166,120310.0,120300.0,0.093]
[1754924224302,2.67492873,120310.0,120300.0,0.093]
[1754924224507,3.05513166,120310.0,120300.0,0.093]
[1754924226405,3.05513166,120310.0,120300.0,0.13966]
[1754924226611,3.05493166,120310.0,120300.0,0.13966]
[1754924226814,2.50167073,120310.0,120300.0,0.13966]
[1754924227019,2.88187366,120310.0,120300.0,0.13966]
[1754924227315,2.88187366,120310.0,120300.0,0.23884]
[1754924227515,2.88187366,120310.0,120300.0,0.27431]
[1754924227719,2.88187366,120310.0,120300.0,0.23884]
[1754924227909,2.88183366,120310.0,120300.0,0.13966]
[1754924229318,2.88191648,120310.0,120300.0,0.13966]
[1754924229513,2.88190222,120310.0,120300.0,0.13966]
[1754924229713,2.88183366,120310.0,120300.0,0.13966]
[1754924231116,1.69487073,120310.0,120300.0,0.2227966]
[1754924231312,2.50127073,120310.0,120300.0,0.3069466]
[1754924231518,1.67804038,120310.0,120300.0,0.3865366]
[1754924231819,2.86460331,120310.0,120300.0,0.19671895]
[1754924233417,2.05824331,120310.0,120300.0,0.093]
[1754924233613,2.86444331,120310.0,120300.0,0.093]
[1754924234014,2.86454797,120310.0,120300.0,0.093]
[1754924234212,2.86444331,120310.0,120300.0,0.093]
[1754924234419,2.86432331,120310.0,120300.0,0.093]
[1754924235423,2.8643856,120310.0,120300.0,0.093]
[1754924235618,2.86432331,120310.0,120300.0,0.093]
[1754924236018,3.03054629,120310.0,120300.0,0.093]
[1754924236218,3.03053206,120310.0,120300.0,0.093]
[1754924236417,3.030525,120310.0,120300.0,0.093]
[1754924236613,3.03054469,120310.0,120300.0,0.093]
[1754924236819,3.03045131,120310.0,120300.0,0.093]
[1754924238832,3.16845131,120310.0,120300.0,0.093]
[1754924239125,3.03045131,120310.0,120300.0,0.093]
[1754924239624,2.86420331,120310.0,120300.0,0.093]
[1754924240328,2.48364038,120310.0,120300.0,0.13966]
[1754924240523,2.48364038,120310.0,120300.0,0.3034]
[1754924241618,2.86384331,120310.0,120300.0,0.3034]
[1754924243631,2.86384331,120310.0,120300.0,0.26793]
[1754924243632,2.05824331,120310.0,120300.0,0.26793]
[1754924243931,2.86352331,120310.0,120300.0,0.093]
[1754924244432,2.05824331,120310.0,120300.0,0.093]
[1754924244827,2.86344331,120310.0,120300.0,0.093]
[1754924245020,2.05824331,120310.0,120300.0,0.13966]
[1754924245227,1.67804038,120310.0,120300.0,0.76673943]
[1754924245423,1.66171038,120310.0,120300.0,0.82379838]
[1754924245627,1.66178281,120310.0,120300.0,0.82379838]
[1754924245832,1.30098261,120310.0,120300.0,1.18459838]
[1754924246032,2.10606261,120310.0,120300.0,1.18459838]
[1754924246834,1.30098261,120310.0,120300.0,1.18459838]
[1754924247127,2.10606261,120310.0,120300.0,1.18459838]
[1754924247936,1.21640617,120310.0,120300.0,1.33325196]
[1754924248136,2.02128617,120310.0,120300.0,1.33325196]
[1754924248735,0.06700617,120310.0,120300.0,1.18459838]
[1754924248934,0.82428617,120310.0,120300.0,1.18459838]
[1754924249234,0.88796253,120310.0,120300.0,1.18559838]
[1754924249431,0.88796253,120310.0,120300.0,1.3786077]
[1754924249631,0.08320253,120310.0,120300.0,1.3786077]
[1754924249832,0.88792253,120310.0,120300.0,1.3786077]
[1754924250329,0.14990354,120310.0,120300.0,1.3786077]
[1754924250529,0.95454354,120310.0,120300.0,1.3786077]
[1754924250736,0.98558354,120310.0,120300.0,1.18559838]
[1754924251139,0.98550354,120310.0,120300.0,1.18559838]
[1754924251534,0.98550354,120310.0,120300.0,1.19422822]
[1754924251841,0.95446354,120310.0,120300.0,1.18559838]
[1754924252335,0.22628354,120310.0,120300.0,0.80539545]
[1754924252538,0.22628354,120310.0,120300.0,0.44459545]
[1754924252740,1.03068354,120310.0,120300.0,0.44459545]
[1754924253336,0.98534354,120310.0,120300.0,0.44459545]
[1754924253538,0.90221344,120310.0,120300.0,0.88991088]
[1754924253736,0.98534354,120310.0,120300.0,0.88991088]
[1754924254541,1.03068354,120310.0,120300.0,0.44459545]
[1754924254842,1.03044354,120310.0,120300.0,0.44459545]
[1754924255539,0.91627344,120310.0,120300.0,0.88562088]
[1754924255740,0.94731344,120310.0,120300.0,1.24642088]
[1754924256041,1.03044304,120310.0,120300.0,0.44030545]
[1754924256230,1.03044304,120310.0,120300.0,0.88562088]
[1754924257543,0.94731344,120310.0,120300.0,1.24642088]
[1754924258143,0.94731344,120310.0,120300.0,0.80110545]
[1754924258345,1.03044304,120310.0,120300.0,1.24642088]
[1754924259042,0.95406304,120310.0,120300.0,0.72832545]
[1754924259242,0.95406304,120310.0,120300.0,1.17364088]
[1754924259740,0.95406304,120310.0,120300.0,1.32215038]
[1754924259944,0.95406304,120310.0,120300.0,0.96135038]
[1754924261638,0.14990304,120310.0,120300.0,0.51603495]
[1754924261839,1.31566984,120310.0,120300.0,0.38270495]
[1754924262046,1.31566984,120310.0,120300.0,0.368236]
[1754924262245,1.31562984,120310.0,120300.0,0.42529495]
[1754924262445,1.31562984,120310.0,120300.0,0.50999495]
[1754924262643,0.95482984,120310.0,120300.0,0.50999495]
[1754924262845,0.87170024,120310.0,120300.0,0.36148545]
[1754924263046,0.87170024,120310.0,120300.0,0.80680088]
[1754924263448,0.87170024,120310.0,120300.0,0.80674471]
[1754924263961,0.87154024,120310.0,120300.0,0.80674471]
[1754924264859,0.87154024,120310.0,120300.0,1.16754471]
[1754924264860,0.87001344,120310.0,120300.0,1.16754471]
[1754924265362,0.87001344,120310.0,120300.0,1.31605421]
[1754924266558,0.95314374,120310.0,120300.0,1.31605421]
[1754924267260,0.87001344,120310.0,120300.0,1.31605421]
[1754924268456,0.95314374,120310.0,120300.0,1.31605421]
[1754924269067,0.95314374,120310.0,120300.0,0.50993878]
[1754924269364,0.95314374,120310.0,120300.0,0.95525421]
[1754924269862,0.95314374,120310.0,120300.0,0.50993878]
[1754924270058,0.95314374,120310.0,120300.0,0.95525421]
[1754924270254,0.95314374,120310.0,120300.0,0.89819526]
[1754924270460,0.95314374,120310.0,120300.0,0.95525421]
[1754924272168,0.95314374,120310.0,120300.0,0.43241878]
[1754924272365,0.95314374,120310.0,120300.0,0.32558983]
[1754924272366,0.89219689,120310.0,120300.0,0.32558983]
[1754924272564,0.90874559,120310.0,120300.0,0.09394383]
[1754924272761,1.71122559,120310.0,120300.0,0.2426432]
[1754924273264,1.71128532,120310.0,120300.0,0.2426432]
[1754924273572,0.90874559,120310.0,120300.0,0.17708133]
[1754924273764,0.52862681,120310.0,120300.0,0.17708133]
[1754924273970,1.33102681,120310.0,120300.0,0.68449011]
[1754924274460,1.33102681,120310.0,120300.0,0.26944133]
[1754924274859,1.33102681,120310.0,120300.0,0.22785133]
[1754924275060,1.33102681,120310.0,120300.0,0.19841133]
[1754924275262,1.33102681,120310.0,120300.0,0.20041133]
[1754924275867,1.33102681,120310.0,120300.0,0.19741133]
[1754924276066,1.71198559,120310.0,120300.0,0.09094383]
[1754924276268,1.33186681,120310.0,120300.0,0.09094383]
[1754924276470,0.52962681,120310.0,120300.0,0.09094383]
[1754924276674,1.77730476,120310.0,120300.0,0.09094383]
[1754924276872,0.97514476,120310.0,120300.0,0.09094383]
[1754924277073,1.77730476,120310.0,120300.0,0.09094383]
[1754924277266,1.77726476,120310.0,120300.0,0.09094383]
[1754924277473,1.94351276,120310.0,120300.0,0.09094383]
[1754924278068,1.94347276,120310.0,120300.0,0.09094383]
[1754924279975,1.94354982,120310.0,120300.0,0.09094383]
[1754924280272,1.94347276,120310.0,120300.0,0.09094383]
[1754924280574,1.49782821,120310.0,120300.0,0.09094383]
[1754924280881,1.53185481,120310.0,120300.0,0.09094383]
[1754924281276,1.97737276,120310.0,120300.0,0.09094383]
[1754924283488,1.17549276,120310.0,120300.0,0.09094383]
[1754924283685,0.72997481,120310.0,120300.0,0.09094383]
[1754924283979,1.53157481,120310.0,120300.0,0.09094383]
[1754924284877,1.53161481,120310.0,120300.0,0.22018383]
[1754924285081,1.53171582,120310.0,120300.0,0.22018383]
[1754924285374,1.53149481,120310.0,120300.0,0.22018383]
[1754924285577,1.53145481,120310.0,120300.0,0.80589723]
[1754924285776,1.17065481,120310.0,120300.0,0.36037928]
[1754924285973,1.53145481,120310.0,120300.0,0.36037928]
[1754924286169,1.53145481,120310.0,120300.0,0.27724278]
[1754924286373,0.72997481,120310.0,120300.0,0.36037928]
[1754924286676,1.53137481,120310.0,120300.0,0.30332033]
[1754924286982,1.49727481,120310.0,120300.0,0.36037928]
[1754924287781,1.49627481,120310.0,120300.0,0.36037928]
[1754924287982,1.49727481,120310.0,120300.0,0.36037928]
[1754924289678,1.13647481,120310.0,120300.0,0.36037928]
[1754924289883,1.49727481,120310.0,120300.0,0.36037928]
[1754924290074,0.69587481,120310.0,120300.0,0.36037928]
[1754924290279,1.13611481,120310.0,120300.0,0.50907865]
[1754924290583,1.13621299,120310.0,120300.0,0.50907865]
[1754924290781,1.13611481,120310.0,120300.0,0.50907865]
[1754924290982,1.49697732,120310.0,120300.0,0.50907865]
[1754924291284,1.13611481,120310.0,120300.0,0.50907865]
[1754924291884,1.13611481,120310.0,120300.0,0.36037928]
[1754924292080,1.13611481,120310.0,120300.0,0.28171928]
[1754924292287,1.13611481,120310.0,120300.0,0.36037928]
[1754924292578,1.49691481,120310.0,120300.0,0.36037928]
[1754924292784,1.13611481,120310.0,120300.0,0.36037928]
[1754924293885,1.49691481,120310.0,120300.0,0.36037928]
[1754924296184,1.49691481,120310.0,120300.0,0.74046402]
[1754924296584,1.49691481,120310.0,120300.0,0.36037928]
[1754924297083,1.49698393,120310.0,120300.0,0.36037928]
[1754924297285,1.48045265,120310.0,120300.0,0.36037928]
[1754924297480,1.48036611,120310.0,120300.0,0.36037928]
[1754924297885,0.67932611,120310.0,120300.0,0.74046402]
[1754924298083,1.47976611,120310.0,120300.0,0.36037928]
[1754924298279,1.47976611,120310.0,120300.0,0.27724278]
[1754924298480,1.47976611,120310.0,120300.0,0.36037928]
[1754924299590,1.47976611,120310.0,120300.0,0.74046402]
[1754924300788,1.31351811,120310.0,120300.0,0.74046402]
[1754924301187,1.31303811,120310.0,120300.0,0.74046402]
[1754924301986,0.51313843,120310.0,120300.0,0.74046402]
[1754924302192,0.51307811,120310.0,120300.0,0.74046402]
[1754924302387,1.31295811,120310.0,120300.0,0.74046402]
[1754924303091,0.51307811,120310.0,120300.0,0.74046402]
[1754924303290,1.31287811,120310.0,120300.0,0.74046402]
[1754924303692,0.51307811,120310.0,120300.0,0.74046402]
[1754924303894,0.95210229,120310.0,120300.0,1.10126402]
[1754924304292,0.06925229,120310.0,120300.0,1.10126402]
[1754924304493,0.06780549,120310.0,120300.0,1.10126402]
[1754924304689,0.86748549,120310.0,120300.0,1.10126402]
[1754924305096,0.95061549,120310.0,120300.0,1.10956488]
[1754924305692,0.95061549,120310.0,120300.0,1.10126402]
[1754924306692,0.95061549,120310.0,120300.0,1.10955814]
[1754924306892,0.95061549,120310.0,120300.0,1.10126402]
[1754924310396,0.86748549,120310.0,120300.0,1.10974057]
[1754924310596,0.95061549,120310.0,120300.0,1.10974057]
[1754924310799,0.86748549,120310.0,120300.0,1.10126402]
[1754924311096,0.95061549,120310.0,120300.0,1.10126402]
[1754924311398,0.95061549,120310.0,120300.0,1.10988139]
[1754924311598,0.95061549,120310.0,120300.0,1.10126402]
[1754924313496,0.86748549,120310.0,120300.0,1.10126402]
[1754924314191,0.86748549,120310.0,120300.0,1.29427334]
[1754924314901,0.86748549,120310.0,120300.0,1.30291619]
[1754924316395,0.86748549,120310.0,120300.0,1.29427334]
[1754924316600,0.86748549,120310.0,120300.0,1.10126402]
[1754924316896,0.15093489,120310.0,120300.0,0.64251928]
[1754924317102,0.94949489,120310.0,120300.0,0.28171928]
[1754924317494,0.94949489,120310.0,120300.0,0.35632928]
[1754924317694,0.94949489,120310.0,120300.0,0.73641402]
[1754924318205,1.31029489,120310.0,120300.0,0.73641402]
[1754924318498,0.51173489,120310.0,120300.0,0.73641402]
[1754924318802,1.31139722,120310.0,120300.0,0.17408033]
[1754924318998,0.55553722,120310.0,120300.0,0.17408033]
[1754924319305,0.96322196,120310.0,120300.0,0.17408033]
[1754924319504,1.76146196,120310.0,120300.0,0.32293468]
[1754924320404,1.38137722,120310.0,120300.0,0.32293468]
[1754924320703,0.96322196,120310.0,120300.0,0.32293468]
[1754924320900,1.38134758,120310.0,120300.0,0.32293468]
[1754924321202,1.38125722,120310.0,120300.0,0.32293468]
[1754924321395,1.76134196,120310.0,120300.0,0.23979818]
[1754924321596,0.96322196,120310.0,120300.0,0.23979818]
[1754924321798,1.76130196,120310.0,120300.0,0.23979818]
[1754924322398,1.76126196,120310.0,120300.0,0.23979818]
[1754924322707,1.76126196,120310.0,120300.0,0.32293458]
[1754924323203,1.76126196,120310.0,120300.0,0.23979818]
[1754924323604,1.76126196,120310.0,120300.0,0.17408023]
[1754924323903,1.76126196,120310.0,120300.0,0.09094383]
[1754924323904,1.38117722,120310.0,120300.0,0.09094383]
[1754924324204,1.38126156,120310.0,120300.0,0.09094383]
[1754924324404,1.38117722,120310.0,120300.0,0.09094383]
[1754924324605,0.58313722,120310.0,120300.0,0.09094383]
[1754924324805,1.38097722,120310.0,120300.0,0.09094383]
[1754924325007,1.38097722,120310.0,120300.0,0.17408023]
[1754924325205,1.38107597,120310.0,120300.0,0.17408023]
[1754924325404,1.38107606,120310.0,120300.0,0.09094383]
[1754924325707,1.76106196,120310.0,120300.0,0.09094383]
[1754924326309,0.58313722,120310.0,120300.0,0.09094383]
[1754924326603,0.96322196,120310.0,120300.0,0.09094383]
[1754924326804,1.38077722,120310.0,120300.0,0.23979818]
[1754924327206,1.38077722,120310.0,120300.0,0.32293448]
[1754924327404,1.38073722,120310.0,120300.0,0.32293448]
[1754924327601,1.38069722,120310.0,120300.0,0.32293448]
[1754924328106,0.58313722,120310.0,120300.0,0.32293448]
[1754924328604,1.38061722,120310.0,120300.0,0.09094383]
[1754924328814,0.58313722,120310.0,120300.0,0.09094383]
[1754924329001,1.38057722,120310.0,120300.0,0.09094383]
[1754924329908,1.38063901,120310.0,120300.0,0.13295383]
[1754924330106,0.58313722,120310.0,120300.0,0.13295383]
[1754924330415,1.38045722,120310.0,120300.0,0.13295383]
[1754924330804,0.58313722,120310.0,120300.0,0.13295383]
[1754924331006,1.38045722,120310.0,120300.0,0.13295383]
[1754924332409,1.38045722,120310.0,120300.0,0.09094383]
[1754924332606,1.76054196,120310.0,120300.0,0.09094383]
[1754924332911,1.76030196,120310.0,120300.0,0.09094383]
[1754924334712,0.58313722,120310.0,120300.0,0.09094383]
[1754924335014,0.58313722,120310.0,120300.0,0.13295383]
[1754924335015,1.38005722,120310.0,120300.0,0.13295383]
[1754924335607,1.38005722,120310.0,120300.0,0.09094383]
[1754924335808,0.58313722,120310.0,120300.0,0.09094383]
[1754924336012,1.37997722,120310.0,120300.0,0.09094383]
[1754924336312,1.37993722,120310.0,120300.0,0.13295383]
[1754924337612,1.38002723,120310.0,120300.0,0.13295383]
[1754924337818,1.3800241,120310.0,120300.0,0.17482383]
[1754924338013,1.37993722,120310.0,120300.0,0.17482383]
[1754924338915,0.58313722,120310.0,120300.0,0.17482383]
[1754924339219,1.37965722,120310.0,120300.0,0.17482383]
[1754924340817,0.58313722,120310.0,120300.0,0.25737383]
[1754924341020,1.37949722,120310.0,120300.0,0.72389752]
[1754924341211,1.37949722,120310.0,120300.0,0.80703382]
[1754924341522,0.58313722,120310.0,120300.0,0.72389752]
[1754924341725,1.37949722,120310.0,120300.0,0.72389752]
[1754924342024,1.37949722,120310.0,120300.0,0.80703382]
[1754924343120,1.33714252,120310.0,120300.0,0.80703382]
[1754924343423,1.37794722,120310.0,120300.0,0.80703382]
[1754924343611,1.33703722,120310.0,120300.0,0.72389752]
[1754924343816,1.37794722,120310.0,120300.0,0.80703182]
[1754924345026,0.58158722,120310.0,120300.0,0.72389752]
[1754924345322,1.75763196,120310.0,120300.0,0.18878278]
[1754924346328,0.96167196,120310.0,120300.0,0.27767278]
[1754924346529,1.75755196,120310.0,120300.0,0.33870278]
[1754924346823,1.37742722,120310.0,120300.0,0.33870278]
[1754924348230,0.58158722,120310.0,120300.0,0.23799278]
[1754924348431,1.37726722,120310.0,120300.0,0.23799278]
[1754924348829,1.37726722,120310.0,120300.0,0.31085278]
[1754924349025,1.37734175,120310.0,120300.0,0.31085278]
[1754924349223,1.3773538,120310.0,120300.0,0.31085278]
[1754924349529,1.37726722,120310.0,120300.0,0.31085278]
[1754924350530,0.58158722,120310.0,120300.0,0.14800278]
[1754924350719,1.75715196,120310.0,120300.0,0.14800278]